fUSD/lending_fUSD_20251213
["ID","MTS","AMOUNT","RATE_DAILY","PERIOD"]
[398435293,1765653041130,-4568.56152259,0.00017728,2]
[398435294,1765653041141,-2732.7300008,0.00017728,2]
[398435295,1765653041153,-272.09108772,0.00017728,2]
[398435296,1765653041169,-2362.58731061,0.00017728,2]
[398435297,1765653041178,-9999.99,0.00017728,2]
[398435298,1765653041187,-8085.58,0.00017728,2]
[398435299,1765653041197,-999.99,0.00017728,2]
[398435300,1765653041206,-510.31,0.00017728,2]
[398435301,1765653041216,-150.99,0.00017728,2]
[398435302,1765653041225,-7512.54197761,0.00017728,2]
[398435303,1765653041236,-1640.00802239,0.00017728,2]
[398435304,1765653041246,-154.69529053,0.00017743,2]
[398435305,1765653041255,-3343.037,0.00017767,2]
[398435306,1765653041264,-172.313,0.00017767,2]
[398435307,1765653041273,-2875.74679559,0.0001778,2]
[398435308,1765653041282,-500.0,0.00017782,2]
[398435309,1765653041291,-7086.6034147,0.00017784,2]
[398435310,1765653041301,-500.0,0.00017799,2]
[398435311,1765653041310,-500.0,0.00017799,2]
[398435312,1765653041320,-500.0,0.00017799,2]
[398435313,1765653041329,-500.0,0.00017799,2]
[398435314,1765653041339,-500.0,0.00017799,2]
[398435315,1765653041349,-219.40603747,0.00017802,2]
[398435316,1765653041363,-93.59396253,0.00017802,2]
[398435317,1765653041373,-150.0,0.00017808,2]
[398435318,1765653041382,-142.89609275,0.00017836,2]
[398435319,1765653041403,-357.10390725,0.00017836,2]
[398435320,1765653041413,-500.0,0.00017836,2]
[398435321,1765653041422,-500.0,0.00017836,2]
[398435322,1765653041433,-150.0,0.00017836,2]
[398435323,1765653041442,-150.0,0.00017836,2]
[398435324,1765653041451,-500.0,0.00017836,2]
[398435325,1765653041460,-150.0,0.00017836,2]
[398435326,1765653041469,-1115.0,0.00017836,2]
[398435327,1765653041478,-150.0,0.00017836,2]
[398435328,1765653041488,-500.0,0.00017836,2]
[398435329,1765653041497,-200.0,0.00017856,2]
[398435330,1765653041507,-915.22,0.00017881,2]
[398435331,1765653041516,-7804.8521,0.000179,2]
[398435332,1765653041526,-232.71774576,0.000179,2]
[398435333,1765653041535,-7086.6034147,0.000179,2]
[398435334,1765653041545,-2875.74679559,0.000179,2]
[398435335,1765653041554,-1527.1188,0.000179,2]
[398435336,1765653041563,-757.41300825,0.000179,2]
[398435337,1765653041572,-209.98775381,0.000179,2]
[398435338,1765653041582,-1586.18068656,0.000179,2]
[398435339,1765653041591,-328.39159954,0.000179,2]
[398435340,1765653041600,-500.0,0.00017918,2]
[398435341,1765653041609,-150.0,0.00017945,2]
[398435342,1765653041619,-3609.2219504,0.00017948,2]
[398435343,1765653041628,-168.0,0.00017956,2]
[398435344,1765653041637,-500.0,0.00017973,2]
[398435345,1765653041646,-500.0,0.00017973,2]
[398435346,1765653041656,-343.22217129,0.00017973,2]
[398435347,1765653041665,-500.0,0.00017973,2]
[398435348,1765653041674,-155.1459837,0.00017973,2]
[398435349,1765653041683,-500.0,0.00017973,2]
[398435350,1765653041692,-586.34376476,0.00017973,2]
[398435351,1765653041701,-500.0,0.00017973,2]
[398435352,1765653041710,-500.0,0.00017973,2]
[398435353,1765653041719,-500.0,0.00017973,2]
[398435354,1765653041728,-500.0,0.00017973,2]
[398435355,1765653041738,-338.1536653,0.00017973,2]
[398435356,1765653041747,-500.0,0.00017973,2]
[398435357,1765653041756,-500.0,0.00017973,2]
[398435358,1765653041764,-200.19202442,0.00017973,2]
[398435359,1765653041773,-500.0,0.00017973,2]
[398435360,1765653041782,-500.0,0.00017973,2]
[398435361,1765653041791,-500.0,0.00017973,2]
[398435362,1765653041799,-500.0,0.00017973,2]
[398435363,1765653041807,-500.0,0.00017973,2]
[398435364,1765653041816,-500.0,0.00017973,2]
[398435365,1765653041825,-500.0,0.00017973,2]
[398435366,1765653041835,-500.0,0.00017973,2]
[398435367,1765653041844,-500.0,0.00017973,2]
[398435368,1765653041854,-500.0,0.00017973,2]
[398435369,1765653041863,-500.0,0.00017973,2]
[398435370,1765653041872,-150.0,0.00017973,2]
[398435371,1765653041881,-150.0,0.00017973,2]
[398435372,1765653041890,-150.0,0.00017973,2]
[398435373,1765653041900,-500.0,0.00017973,2]
[398435374,1765653041909,-150.0,0.00017973,2]
[398435375,1765653041919,-1115.0,0.00017973,2]
[398435376,1765653041928,-150.0,0.00017973,2]
[398435377,1765653041937,-500.0,0.00017973,2]
[398435378,1765653041946,-2809.5091057,0.00017999,2]
[398435379,1765653041955,-7500.50611743,0.00017999,2]
[398435391,1765653042945,-563.0,0.00017088,2]
[398435392,1765653042955,-4.28797337,0.00017999,2]
[398435393,1765653042965,-1936.5111687,0.00017999,2]
[398435394,1765653042976,-42765.8330921,0.00017999,2]
[398435395,1765653042986,-216.3909554,0.00017999,2]
[398435396,1765653042995,-1552.7911721,0.00017999,2]
[398435397,1765653043006,-508.77668287,0.00017999,2]
[398435398,1765653043015,-300.0,0.00017999,2]
[398435399,1765653043024,-6525.0,0.00018,2]
[398435400,1765653043034,-150.0,0.00018,2]
[398435401,1765653043043,-150.0,0.00018,2]
[398435402,1765653043052,-150.0,0.00018,2]
[398435403,1765653043062,-189.86021173,0.00018,2]
[398435404,1765653043071,-166.95510629,0.00018,2]
[398435405,1765653043081,-150.0,0.00018,2]
[398435406,1765653043090,-876487.77965357,0.00018,2]
[398435407,1765653043102,-39357.55909757,0.00018,2]
[398435408,1765653043113,-1001.9863755,0.00018,2]
[398435409,1765653043179,-512.8832132,0.00018,2]
[398435410,1765653043191,-301.1,0.00018,2]
[398435414,1765653043248,-358.46845774,0.00018,2]
[398435427,1765653045800,-51029.46852518,0.00018,2]
[398435432,1765653045840,-3275.848593,0.00018,2]
[398435437,1765653045947,-8911.79410613,0.00018,2]
[398435438,1765653045958,-1628.49219609,0.00018,2]
[398435439,1765653045969,-373.96952708,0.00018,2]
[398435440,1765653046000,-420152.43287201,0.00018,2]
[398435441,1765653046031,-1271.10900389,0.00018,2]
[398435442,1765653046042,-2568.19858443,0.00018,2]
[398435443,1765653046054,-4244.32020884,0.00018,2]
[398435445,1765653046066,-742437.12514834,0.00018,2]
[398435446,1765653046077,-426251.31294813,0.00018,2]
[398435448,1765653046112,-283943.78930853,0.00018,2]
[398435449,1765653046121,-467507.10312069,0.00018,2]
[398435455,1765653214471,515.91,0.00013699,2]
[398435478,1765653714855,-285.0,0.00016135,2]
[398435479,1765653714887,-166.66,0.00016135,2]
[398435480,1765653714915,-391.20555727,0.0001622,2]
[398435481,1765653714944,-250.0,0.00016305,2]
[398435482,1765653714972,-200.0,0.00016367,2]
[398435483,1765653715001,-300.0,0.00016437,2]
[398435484,1765653717855,-215.42,0.00016438,2]
[398435501,1765654122084,1232.967164,0.00015,2]
[398435502,1765654147791,671.867645,7.945e-05,2]
[398435503,1765654162423,157.55,0.00012587,2]
[398435504,1765654222975,969.17,0.00015579,2]
[398435514,1765654231869,-1200.0,0.00015999,2]
[398435515,1765654231879,-300.0,0.00015999,2]
[398435517,1765654231888,-300.0,0.00015999,2]
[398435519,1765654231898,-300.0,0.00015999,2]
[398435521,1765654231908,-3592.19999998,0.00016,4]
[398435524,1765654231924,-287.57868463,0.00016,4]
[398435530,1765654232083,-12715.47349433,0.00016,4]
[398435531,1765654232096,-456.51228207,0.00016,4]
[398435532,1765654232139,-5178.71866305,0.00016,4]
[398435533,1765654232153,-16888.91348936,0.00016,4]
[398435550,1765654239551,-363.49229628,0.00015999,2]
[398435551,1765654239560,-500.0,0.00015999,2]
[398435552,1765654239569,-230.2955059,0.00015999,2]
[398435553,1765654239578,-500.0,0.00015999,2]
[398435554,1765654239588,-500.0,0.00015999,2]
[398435555,1765654239598,-500.0,0.00015999,2]
[398435556,1765654239608,-500.0,0.00015999,2]
[398435557,1765654239617,-500.0,0.00015999,2]
[398435558,1765654239627,-5122.48611647,0.00016,4]
[398435559,1765654239638,-5765.9180466,0.00016,4]
[398435560,1765654239650,-2724.7365,0.00016,4]
[398435561,1765654239661,-1122.70891671,0.00016,4]
[398435562,1765654239672,-134778.89869168,0.00016,4]
[398435563,1765654239683,-436697.22330336,0.00016,4]
[398435564,1765654239692,-332.27944566,0.000161,2]
[398435565,1765654239702,-150.0,0.000162,2]
[398435566,1765654239711,-150.0,0.000162,2]
[398435567,1765654239720,-150.0,0.000162,2]
[398435568,1765654239730,-150.0,0.000162,2]
[398435569,1765654239739,-150.0,0.000162,2]
[398435570,1765654239749,-250.0,0.000162,2]
[398435571,1765654239759,-5000.00424776,0.000162,5]
[398435572,1765654239768,-201.82780309,0.00016237,2]
[398435573,1765654239778,-250.0,0.00016262,2]
[398435574,1765654239787,-158.82,0.00016276,2]
[398435575,1765654239797,-332.27944566,0.00016357,2]
[398435576,1765654239806,-151.0,0.00016397,2]
[398435577,1765654239815,-102508.48342984,0.000164,2]
[398435578,1765654239825,-11391.96000683,0.00016408,2]
[398435579,1765654239834,-500.0,0.00016438,2]
[398435580,1765654239844,-500.0,0.00016438,2]
[398435581,1765654239853,-500.0,0.00016438,2]
[398435582,1765654239863,-500.0,0.00016438,2]
[398435583,1765654239872,-500.0,0.00016438,2]
[398435584,1765654239882,-567.26954325,0.00016438,2]
[398435585,1765654239892,-500.0,0.00016438,2]
[398435586,1765654239903,-500.0,0.00016438,2]
[398435587,1765654239914,-500.0,0.00016438,2]
[398435588,1765654239923,-500.0,0.00016438,2]
[398435589,1765654239933,-9569.17,0.00016438,2]
[398435590,1765654239942,-1000.0,0.00016438,2]
[398435591,1765654239953,-166.66,0.00016475,2]
[398435592,1765654239962,-1000.0,0.00016507,2]
[398435593,1765654239971,-7009.44,0.00016508,2]
[398435594,1765654239980,-3674.36,0.00016508,2]
[398435595,1765654239990,-6252.35,0.00016508,2]
[398435596,1765654239999,-9999.99,0.00016508,2]
[398435597,1765654240009,-999.99,0.00016508,2]
[398435598,1765654240019,-150.99,0.00016508,2]
[398435599,1765654240029,-2751.0,0.00016513,2]
[398435600,1765654240039,-6464.92,0.00016513,2]
[398435601,1765654240048,-517.96,0.00016549,2]
[398435602,1765654240058,-11391.96000682,0.00016574,2]
[398435603,1765654240067,-332.27944566,0.00016614,2]
[398435604,1765654240076,-170.0,0.00016616,2]
[398435605,1765654240085,-231.32855262,0.0001668,2]
[398435606,1765654240093,-168.27,0.00016712,2]
[398435607,1765654240103,-500.0,0.00016712,2]
[398435608,1765654240112,-760000.0,0.00016735,2]
[398435609,1765654240121,-11391.96000682,0.0001674,2]
[398435610,1765654240130,-150.0,0.0001678,2]
[398435611,1765654240140,-1000.0,0.00016786,2]
[398435612,1765654240155,-166.66,0.00016815,2]
[398435613,1765654240165,-231.32855262,0.00016826,2]
[398435614,1765654240175,-15267.42191064,0.00016835,2]
[398435615,1765654240187,-332.27944566,0.00016871,2]
[398435616,1765654240198,-897.5754,0.00016886,2]
[398435617,1765654240209,-233.22449763,0.00016886,2]
[398435618,1765654240221,-500.0,0.00016886,2]
[398435619,1765654240230,-500.0,0.00016886,2]
[398435620,1765654240239,-291.0,0.0001689,2]
[398435621,1765654240249,-11719.87305593,0.000169,2]
[398435622,1765654240259,-11391.96000682,0.00016905,2]
[398435623,1765654240269,-200.0,0.00016913,2]
[398435624,1765654240279,-179.7815492,0.00016971,2]
[398435625,1765654240289,-231.32855262,0.00016971,2]
[398435626,1765654240299,-500.61753007,0.00016973,2]
[398435627,1765654240310,-500.0,0.00016973,2]
[398435628,1765654240320,-500.0,0.00016973,2]
[398435629,1765654240331,-359.88591331,0.00016973,2]
[398435630,1765654240341,-500.0,0.00016973,2]
[398435631,1765654240351,-500.26118235,0.00016973,2]
[398435632,1765654240361,-500.0,0.00016973,2]
[398435633,1765654240373,-500.0,0.00016973,2]
[398435634,1765654240384,-500.35110535,0.00016973,2]
[398435635,1765654240393,-161.37166707,0.00016973,2]
[398435636,1765654240403,-500.0,0.00016973,2]
[398435637,1765654240414,-500.0,0.00016973,2]
[398435638,1765654240425,-165.3739483,0.00016973,2]
[398435639,1765654240435,-169.12411407,0.00016973,2]
[398435640,1765654240446,-176.49977071,0.00016973,2]
[398435641,1765654240457,-501.40165484,0.00016973,2]
[398435643,1765654240469,-500.0,0.00016973,2]
[398435645,1765654240479,-500.0,0.00016973,2]
[398435647,1765654240489,-500.0,0.00016973,2]
[398435649,1765654240499,-500.0,0.00016973,2]
[398435651,1765654240509,-500.0,0.00016973,2]
[398435653,1765654240519,-500.0,0.00016973,2]
[398435655,1765654240529,-500.0,0.00016973,2]
[398435657,1765654240537,-500.0,0.00016973,2]
[398435658,1765654240547,-500.0,0.00016973,2]
[398435659,1765654240557,-179.32977194,0.00016973,2]
[398435661,1765654240566,-562.4542945,0.00016973,2]
[398435662,1765654240577,-500.0,0.00016973,2]
[398435663,1765654240586,-482.77559391,0.00016973,2]
[398435664,1765654240595,-500.0,0.00016973,2]
[398435665,1765654240605,-500.0,0.00016973,2]
[398435666,1765654240615,-500.0,0.00016973,2]
[398435667,1765654240625,-500.34016272,0.00016973,2]
[398435668,1765654240635,-499.89680004,0.00016973,2]
[398435669,1765654240644,-500.0,0.00016973,2]
[398435670,1765654240653,-500.0,0.00016973,2]
[398435671,1765654240663,-500.0,0.00016973,2]
[398435672,1765654240673,-546.94041504,0.00016973,2]
[398435673,1765654240684,-500.0,0.00016973,2]
[398435674,1765654240693,-500.0,0.00016973,2]
[398435675,1765654240703,-500.0,0.00016973,2]
[398435676,1765654240713,-500.0,0.00016973,2]
[398435677,1765654240722,-161.89218432,0.00016973,2]
[398435678,1765654240731,-500.26433138,0.00016973,2]
[398435679,1765654240741,-1186.28,0.00016973,2]
[398435680,1765654240751,-300.0,0.00016986,2]
[398435681,1765654240762,-270.53619862,0.00016986,2]
[398435682,1765654240772,-995.0,0.00016986,2]
[398435683,1765654240782,-1000.0,0.00016986,2]
[398435684,1765654240792,-1000.0,0.00016986,2]
[398435685,1765654240803,-800.91950008,0.00016986,2]
[398435686,1765654240812,-1000.0,0.00016986,2]
[398435687,1765654240821,-1000.0,0.00016986,2]
[398435688,1765654240830,-1000.0,0.00016986,2]
[398435689,1765654240840,-1000.0,0.00016986,2]
[398435690,1765654240849,-1000.0,0.00016986,2]
[398435691,1765654240858,-1000.0,0.00016986,2]
[398435692,1765654240867,-1000.0,0.00016986,2]
[398435693,1765654240877,-1000.0,0.00016986,2]
[398435694,1765654240887,-1000.0,0.00016986,2]
[398435695,1765654240896,-1000.0,0.00016986,2]
[398435696,1765654240905,-1000.0,0.00016986,2]
[398435697,1765654240915,-300.70127104,0.00016986,2]
[398435698,1765654240924,-622.24294831,0.00016986,2]
[398435699,1765654240934,-151.0,0.00016986,2]
[398435700,1765654240944,-500.0,0.00016986,2]
[398435701,1765654240954,-196.93257166,0.0001699,2]
[398435702,1765654240964,-307.76658629,0.00016999,2]
[398435703,1765654240975,-1327565.6732309,0.00017,2]
[398435704,1765654241009,-949.309992,0.00017,2]
[398435705,1765654241020,-595.997561,0.00017,2]
[398435706,1765654241033,-4480.8035198,0.00017,2]
[398435707,1765654241045,-467.97099624,0.00017,2]
[398435708,1765654241058,-21032.49278182,0.00017,2]
[398435709,1765654241071,-1059.80161734,0.00017,2]
[398435710,1765654241084,-332.13228803,0.00017,2]
[398435711,1765654241096,-72935.4774276,0.00017,2]
[398435712,1765654241110,-6315.3454475,0.00017,2]
[398435713,1765654241122,-265.26319992,0.00017,2]
[398435714,1765654241135,-809.917872,0.00017,2]
[398435715,1765654241155,-323.24856445,0.00017,2]
[398435716,1765654241167,-1427.5027801,0.00017,2]
[398435722,1765654243039,-2926.12071979,0.00017,2]
[398435723,1765654243051,-1151.13062705,0.00017,2]
[398435724,1765654243152,-661.89953083,0.00017,2]
[398435725,1765654243175,-1801.66904595,0.00017,2]
[398435726,1765654243201,-294.77570131,0.00017,2]
[398435727,1765654243229,-6120.34283461,0.00017,2]
[398435728,1765654243253,-15652.93825735,0.00017,2]
[398435729,1765654243267,-257.41840105,0.00017,2]
[398435730,1765654243284,-777.45991394,0.00017,2]
[398435735,1765654245955,-8805.00926908,0.00017,2]
[398435736,1765654246063,-629.4252475,0.00017,2]
[398435737,1765654246074,-975.43176676,0.00017,2]
[398435738,1765654246085,-569.93088227,0.00017,2]
[398435741,1765654303975,-782.52,0.00024658,30]
[398435742,1765654304011,-517.96,0.00024824,120]
[398435743,1765654304043,-17610.73484549,0.00025,30]
[398435744,1765654304072,-166.0,0.00025,120]
[398435745,1765654304101,-481.04173315,0.00025,30]
[398435746,1765654304143,-300.0,0.00028,120]
[398435747,1765654304172,-500.0,0.00028767,60]
[398435748,1765654304206,-500.0,0.00028904,60]
[398435749,1765654304234,-500.0,0.00029041,60]
[398435750,1765654304264,-196.61120716,0.00029155,30]
[398435751,1765654304293,-481.16251036,0.00029178,60]
[398435752,1765654304324,-782.52,0.00029492,30]
[398435753,1765654304357,-150.0,0.0003,90]
[398435754,1765654304386,-1015.46056,0.0003,120]
[398435755,1765654304415,-300.0,0.0003,120]
[398435756,1765654304444,-300.0,0.0003,30]
[398435757,1765654304473,-325.0,0.0003,30]
[398435758,1765654304501,-16161.2027926,0.0003,120]
[398435759,1765654304530,-1000.0,0.0003,30]
[398435760,1765654304558,-1000.0,0.0003,30]
[398435761,1765654304586,-5342.80046028,0.0003,30]
[398435762,1765654304621,-481.04173315,0.0003,120]
[398435763,1765654304651,-729.51,0.000302,30]
[398435764,1765654304684,-2000.0,0.00030685,120]
[398435765,1765654304716,-2000.0,0.00031233,120]
[398435766,1765654304745,-300.0,0.000314,120]
[398435767,1765654304775,-160.0,0.00031507,120]
[398435768,1765654304804,-2000.0,0.00031781,120]
[398435769,1765654304838,-300.0,0.00032,120]
[398435770,1765654304867,-1710.22457845,0.00032,120]
[398435771,1765654304896,-2000.0,0.00032329,120]
[398435772,1765654304925,-729.51,0.000325,30]
[398435773,1765654304954,-4112.48,0.00032876,120]
[398435774,1765654305420,-151.0,0.00032877,31]
[398435775,1765654305450,-151.0,0.00032877,31]
[398435776,1765654305480,-151.0,0.00032877,31]
[398435777,1765654305508,-151.0,0.00032877,31]
[398435778,1765654305537,-151.0,0.00032877,31]
[398435779,1765654305565,-151.0,0.00032877,31]
[398435780,1765654305594,-151.0,0.00032877,31]
[398435781,1765654305622,-151.0,0.00032877,31]
[398435782,1765654305651,-151.0,0.00032877,31]
[398435783,1765654305679,-151.0,0.00032877,31]
[398435784,1765654305707,-202.341262,0.00032877,31]
[398435785,1765654305736,-2000.0,0.00032877,120]
[398435786,1765654305765,-3521.0,0.00033,120]
[398435787,1765654305791,-500.0,0.00033,53]
[398435788,1765654305823,-1710.22457845,0.00033,120]
[398435789,1765654305849,-2158.0,0.00033,30]
[398435790,1765654305877,-194.0,0.00033,120]
[398435791,1765654305908,-336.0,0.000333,120]
[398435792,1765654305938,-2000.0,0.00033425,120]
[398435793,1765654305964,-2000.0,0.00033425,120]
[398435794,1765654305993,-729.51,0.000338,30]
[398435795,1765654306020,-1710.22457845,0.000339,120]
[398435796,1765654306048,-4112.48,0.00033972,120]
[398435797,1765654306074,-2000.0,0.00033973,120]
[398435798,1765654306102,-2000.0,0.00033973,120]
[398435799,1765654306129,-300.0,0.00034,120]
[398435800,1765654306157,-500.0,0.00034,54]
[398435801,1765654306185,-2000.0,0.00034,30]
[398435802,1765654306215,-199.0,0.00034246,30]
[398435803,1765654306244,-782.52,0.00034327,30]
[398435804,1765654306284,-813.49694134,0.000345,30]
[398435805,1765654306326,-2000.0,0.00034521,120]
[398435806,1765654306354,-2000.0,0.00034521,120]
[398435807,1765654306382,-182.8005708,0.0003488,120]
[398435808,1765654306409,-215.0,0.0003488,30]
[398435809,1765654306438,-729.51,0.000349,30]
[398435810,1765654306466,-199.0,0.00034931,31]
[398435811,1765654306495,-150.0,0.00035,90]
[398435812,1765654306525,-500.0,0.00035,55]
[398435813,1765654306555,-1710.22457845,0.00035,120]
[398435814,1765654306586,-1500.0,0.00035,30]
[398435815,1765654306619,-444.34,0.00035,30]
[398435816,1765654306648,-2000.0,0.00035,30]
[398435817,1765654306674,-2000.0,0.00035068,120]
[398435818,1765654306703,-2000.0,0.00035068,120]
[398435819,1765654306732,-4112.48,0.00035068,120]
[398435820,1765654306761,-1500.0,0.000355,30]
[398435821,1765654306787,-300.0,0.00035616,56]
[398435822,1765654306813,-280.8,0.00035616,41]
[398435823,1765654306840,-2000.0,0.00035616,120]
[398435824,1765654306866,-2000.0,0.00035616,120]
[398435825,1765654306892,-199.0,0.00035616,32]
[398435826,1765654306919,-1437.0,0.00035616,30]
[398435827,1765654306946,-729.51,0.000359,30]
[398435828,1765654306973,-2000.0,0.00036,30]
[398435829,1765654307000,-1016.09,0.00036,30]
[398435830,1765654307028,-300.0,0.00036,120]
[398435831,1765654307054,-500.0,0.00036,56]
[398435832,1765654307081,-1710.22457845,0.00036,120]
[398435833,1765654307108,-1500.0,0.00036,30]
[398435834,1765654307138,-2000.0,0.00036164,120]
[398435835,1765654307168,-2000.0,0.00036164,120]
[398435836,1765654307203,-4112.48,0.00036164,120]
[398435837,1765654307232,-499.999999,0.00036258,30]
[398435838,1765654307259,-199.0,0.00036301,33]
[398435839,1765654307286,-4000.0,0.00036432,31]
[398435840,1765654307313,-1500.0,0.000365,30]
[398435841,1765654307340,-2000.0,0.00036712,120]
[398435842,1765654307366,-2000.0,0.00036712,120]
[398435843,1765654307393,-160.0,0.00036758,120]
[398435844,1765654307421,-729.51,0.000368,30]
[398435845,1765654307449,-215.0,0.0003689,30]
[398435846,1765654307477,-500.0,0.0003696,120]
[398435847,1765654307507,-500.0,0.0003696,120]
[398435848,1765654307535,-500.0,0.0003696,120]
[398435849,1765654307562,-504.76,0.0003696,120]
[398435850,1765654307593,-199.0,0.00036986,34]
[398435851,1765654307622,-250.60956423,0.00037,120]
[398435852,1765654307651,-500.0,0.00037,57]
[398435853,1765654307679,-1500.0,0.00037,30]
[398435854,1765654307706,-2000.0,0.00037,30]
[398435855,1765654307733,-185.33615841,0.000372,120]
[398435856,1765654307761,-185.3361584,0.000372,120]
[398435857,1765654307789,-2000.0,0.0003726,120]
[398435858,1765654307816,-2000.0,0.0003726,120]
[398435859,1765654307845,-4112.48,0.0003726,120]
[398435860,1765654307873,-388.93,0.000374,120]
[398435861,1765654307903,-453.0,0.000375,120]
[398435862,1765654307934,-1500.0,0.000375,30]
[398435863,1765654307962,-522.145,0.000375,120]
[398435864,1765654307990,-199.0,0.00037671,35]
[398435865,1765654308018,-234.0,0.00037699,33]
[398435866,1765654308044,-611.1579786,0.000377,30]
[398435867,1765654308072,-777.92947815,0.00037753,120]
[398435868,1765654308103,-2000.0,0.00037808,120]
[398435869,1765654308364,-2000.0,0.00037808,120]
[398435870,1765654308396,-188.35,0.00037808,60]
[398435871,1765654308430,-215.39289731,0.00037819,120]
[398435872,1765654308458,-188.36,0.00037839,80]
[398435873,1765654308486,-188.35,0.00037869,100]
[398435874,1765654308520,-188.35,0.000379,120]
[398435875,1765654308553,-500.0,0.00038,120]
[398435876,1765654308582,-1528.792085,0.00038,120]
[398435877,1765654308611,-729.51,0.00038,30]
[398435878,1765654308640,-300.0,0.00038,120]
[398435879,1765654308668,-727.70060639,0.00038,120]
[398435880,1765654308697,-500.0,0.00038,58]
[398435881,1765654308724,-1500.0,0.00038,30]
[398435882,1765654308753,-1537.83,0.00038082,60]
[398435883,1765654308780,-300.140128,0.00038173,88]
[398435884,1765654308809,-500.0,0.00038356,120]
[398435885,1765654308838,-500.0,0.00038356,120]
[398435886,1765654308866,-500.0,0.00038356,120]
[398435887,1765654308895,-500.0,0.00038356,120]
[398435888,1765654308924,-2104.16,0.00038356,120]
[398435889,1765654308951,-500.0,0.00038356,120]
[398435890,1765654308979,-500.0,0.00038356,120]
[398435891,1765654309006,-500.0,0.00038356,120]
[398435892,1765654309034,-500.0,0.00038356,30]
[398435893,1765654309063,-2000.0,0.00038356,120]
[398435894,1765654309095,-2000.0,0.00038356,120]
[398435895,1765654309125,-500.0,0.00038356,30]
[398435896,1765654309153,-500.0,0.00038356,30]
[398435897,1765654309182,-500.0,0.00038356,30]
[398435898,1765654309210,-500.0,0.00038356,120]
[398435899,1765654309240,-507.72738807,0.00038356,120]
[398435900,1765654309272,-374.22148136,0.00038356,120]
[398435901,1765654309305,-500.0,0.00038356,120]
[398435902,1765654309341,-286.97083774,0.00038356,120]
[398435903,1765654309379,-500.0,0.00038356,120]
[398435904,1765654309417,-199.0,0.00038356,36]
[398435905,1765654309455,-1537.83,0.00038356,62]
[398435906,1765654309495,-4112.48,0.00038356,120]
[398435907,1765654309535,-157.317652,0.00038356,120]
[398435908,1765654309572,-1500.0,0.000385,30]
[398435909,1765654309607,-233.5,0.00038521,33]
[398435910,1765654309646,-1631.23,0.000386,120]
[398435911,1765654309681,-150.0,0.0003861,30]
[398435912,1765654309715,-150.0,0.0003861,30]
[398435913,1765654309749,-200.0,0.0003863,120]
[398435914,1765654309783,-500.0,0.0003863,120]
[398435915,1765654309814,-500.0,0.0003863,120]
[398435916,1765654309844,-2104.16,0.0003863,120]
[398435917,1765654309874,-500.0,0.0003863,120]
[398435918,1765654309904,-500.0,0.0003863,120]
[398435919,1765654309935,-500.0,0.0003863,30]
[398435920,1765654309966,-1537.83,0.0003863,64]
[398435921,1765654309997,-393.79,0.000387,120]
[398435922,1765654310027,-5300.0,0.000387,120]
[398435923,1765654310057,-5659.58,0.000388,30]
[398435924,1765654310088,-153.0,0.00038802,120]
[398435925,1765654310118,-153.0,0.00038802,120]
[398435926,1765654310149,-153.0,0.00038802,120]